fUST/lending_fUST_20250522
["ID","MTS","AMOUNT","RATE_DAILY","PERIOD"]
[361854943,1747843761177,-1814.0332937,0.00016335,2]
[361854944,1747843768072,-898.85953633,0.00016335,2]
[361855008,1747843832612,-3288.12541968,0.00016172,2]
[361855010,1747843832623,-153.30079669,0.00016667,2]
[361855011,1747843832633,-163.0,0.00016767,3]
[361855012,1747843832643,-235.46143327,0.000169,2]
[361855014,1747843832653,-150.0,0.000189,2]
[361855016,1747843832663,-189.0,0.00019082,2]
[361855018,1747843832674,-300.0,0.00019082,2]
[361855019,1747843832684,-300.0,0.00019082,2]
[361855020,1747843832694,-14966.1996449,0.00019083,2]
[361855021,1747843832704,-160.0,0.0001914,2]
[361855022,1747843832714,-160.0,0.0001914,2]
[361855023,1747843832724,-235.46143326,0.0001915,2]
[361855024,1747843832734,-206.382895,0.00019178,2]
[361855026,1747843832743,-329.61853291,0.00019231,2]
[361855028,1747843832753,-422.71322487,0.00019231,2]
[361855030,1747843832764,-160.0,0.00019232,2]
[361855032,1747843832773,-585.60806313,0.00020124,2]
[361855034,1747843832784,-158.700878,0.00020187,2]
[361855036,1747843832793,-420.0,0.00020798,2]
[361855038,1747843832804,-172.74960757,0.00020979,2]
[361855040,1747843832814,-3000.0,0.00021,2]
[361855042,1747843832825,-3000.0,0.0002101,2]
[361855044,1747843832835,-177.69738594,0.00021019,2]
[361855046,1747843832846,-232.30224052,0.00021019,2]
[361855048,1747843832856,-500.0,0.00021019,2]
[361855050,1747843832866,-500.0,0.00021019,2]
[361855052,1747843832876,-500.0,0.00021019,2]
[361855054,1747843832886,-500.0,0.00021019,2]
[361855056,1747843832896,-500.0,0.00021019,2]
[361855058,1747843832906,-500.0,0.00021019,2]
[361855060,1747843832917,-500.0,0.00021019,2]
[361855062,1747843832927,-500.0,0.00021019,2]
[361855064,1747843832937,-500.0,0.00021019,2]
[361855066,1747843832946,-500.0,0.00021019,2]
[361855068,1747843832956,-500.0,0.00021019,2]
[361855070,1747843832965,-500.0,0.00021019,2]
[361855072,1747843832975,-500.0,0.00021019,2]
[361855074,1747843832985,-500.0,0.00021019,2]
[361855076,1747843832995,-500.0,0.00021019,2]
[361855078,1747843833005,-500.0,0.00021019,2]
[361855080,1747843833015,-500.0,0.00021019,2]
[361855082,1747843833025,-500.0,0.00021019,2]
[361855084,1747843833034,-500.0,0.00021019,2]
[361855086,1747843833045,-500.0,0.00021019,2]
[361855088,1747843833055,-500.0,0.00021019,2]
[361855090,1747843833065,-500.0,0.00021019,2]
[361855092,1747843833075,-500.0,0.00021019,2]
[361855094,1747843833085,-500.0,0.00021019,2]
[361855096,1747843833096,-500.0,0.00021019,2]
[361855098,1747843833111,-500.0,0.00021019,2]
[361855100,1747843833122,-500.0,0.00021019,2]
[361855103,1747843833132,-500.0,0.00021019,2]
[361855105,1747843833143,-500.0,0.00021019,2]
[361855107,1747843833156,-500.0,0.00021019,2]
[361855108,1747843833166,-500.0,0.00021019,2]
[361855111,1747843833180,-500.0,0.00021019,2]
[361855113,1747843833191,-500.0,0.00021019,2]
[361855115,1747843833201,-290.56773331,0.00021019,2]
[361855117,1747843833212,-500.0,0.00021019,2]
[361855119,1747843833223,-500.0,0.00021019,2]
[361855121,1747843833233,-500.0,0.00021019,2]
[361855123,1747843833244,-500.0,0.00021019,2]
[361855125,1747843833255,-500.0,0.00021019,2]
[361855127,1747843833266,-500.0,0.00021019,2]
[361855129,1747843833276,-500.0,0.00021019,2]
[361855131,1747843833287,-500.0,0.00021019,2]
[361855133,1747843833297,-500.0,0.00021019,2]
[361855135,1747843833308,-500.0,0.00021019,2]
[361855137,1747843833319,-500.0,0.00021019,2]
[361855139,1747843833330,-500.0,0.00021019,2]
[361855141,1747843833341,-500.0,0.00021019,2]
[361855143,1747843833355,-500.0,0.00021019,2]
[361855145,1747843833368,-500.0,0.00021019,2]
[361855147,1747843833381,-500.0,0.00021019,2]
[361855149,1747843833391,-500.0,0.00021019,2]
[361855151,1747843833401,-500.0,0.00021019,2]
[361855153,1747843833411,-500.0,0.00021019,2]
[361855155,1747843833421,-500.0,0.00021019,2]
[361855157,1747843833432,-500.0,0.00021019,2]
[361855159,1747843833442,-500.0,0.00021019,2]
[361855161,1747843833451,-500.0,0.00021019,2]
[361855163,1747843833461,-500.0,0.00021019,2]
[361855165,1747843833470,-500.0,0.00021019,2]
[361855167,1747843833480,-500.0,0.00021019,2]
[361855169,1747843833490,-500.0,0.00021019,2]
[361855171,1747843833500,-500.0,0.00021019,2]
[361855173,1747843833510,-500.0,0.00021019,2]
[361855175,1747843833520,-500.0,0.00021019,2]
[361855177,1747843833530,-500.0,0.00021019,2]
[361855179,1747843833540,-500.0,0.00021019,2]
[361855181,1747843833551,-500.0,0.00021019,2]
[361855183,1747843833561,-500.0,0.00021019,2]
[361855185,1747843833571,-500.0,0.00021019,2]
[361855186,1747843833581,-500.0,0.00021019,2]
[361855189,1747843833591,-500.0,0.00021019,2]
[361855191,1747843833603,-500.0,0.00021019,2]
[361855193,1747843833613,-500.0,0.00021019,2]
[361855195,1747843833624,-500.0,0.00021019,2]
[361855197,1747843833635,-500.0,0.00021019,2]
[361855199,1747843833645,-500.0,0.00021019,2]
[361855201,1747843833656,-500.0,0.00021019,2]
[361855203,1747843833666,-500.0,0.00021019,2]
[361855205,1747843833676,-550.0,0.00021019,2]
[361855207,1747843833686,-3000.0,0.0002102,2]
[361855209,1747843833697,-3000.0,0.0002103,2]
[361855211,1747843833707,-3000.0,0.0002104,2]
[361855213,1747843833718,-3000.0,0.0002105,2]
[361855215,1747843833728,-3000.0,0.0002106,2]
[361855217,1747843833739,-3000.0,0.0002107,2]
[361855219,1747843833750,-3000.0,0.0002108,2]
[361855221,1747843833760,-5791.518508,0.0002109,2]
[361855223,1747843833771,-235.46143326,0.000214,5]
[361855225,1747843833781,-500.0,0.0002177,2]
[361855227,1747843833791,-225.00635675,0.00021917,2]
[361855229,1747843833804,-430.0,0.00021917,2]
[361855231,1747843833814,-441.16560004,0.00021917,2]
[361855233,1747843833824,-2738.04,0.00021917,2]
[361855236,1747843833834,-546.17,0.00021917,2]
[361855237,1747843833845,-430.0,0.00021917,2]
[361855239,1747843833855,-205.60720752,0.00021917,2]
[361855241,1747843833866,-430.0,0.00021917,2]
[361855243,1747843833876,-500.0,0.00021917,2]
[361855245,1747843833886,-430.0,0.00021917,2]
[361855247,1747843833896,-430.0,0.00021917,2]
[361855249,1747843833906,-430.0,0.00021917,2]
[361855251,1747843833917,-430.0,0.00022191,2]
[361855253,1747843833928,-2738.04,0.00022191,2]
[361855255,1747843833938,-546.17,0.00022191,2]
[361855256,1747843833948,-430.0,0.00022191,2]
[361855257,1747843833957,-500.0,0.00022191,2]
[361855258,1747843833968,-430.0,0.00022191,2]
[361855259,1747843833979,-161.78,0.00022191,2]
[361855260,1747843833988,-430.0,0.00022465,2]
[361855261,1747843833998,-2738.04,0.00022465,2]
[361855262,1747843834008,-546.17,0.00022465,2]
[361855263,1747843834018,-430.0,0.00022465,2]
[361855264,1747843834028,-500.0,0.00022465,2]
[361855265,1747843834038,-207.6,0.00022465,2]
[361855266,1747843834047,-167.0,0.00022668,2]
[361855267,1747843834057,-322.1760786,0.00022739,2]
[361855268,1747843834067,-2738.04,0.00022739,2]
[361855269,1747843834076,-546.17,0.00022739,2]
[361855270,1747843834086,-430.0,0.00022739,2]
[361855271,1747843834096,-500.0,0.00022739,2]
[361855272,1747843834111,-1168.66,0.00023,2]
[361855273,1747843834121,-500.0,0.00023011,2]
[361855274,1747843834132,-2738.04,0.00023013,2]
[361855275,1747843834142,-546.17,0.00023013,2]
[361855276,1747843834153,-430.0,0.00023013,2]
[361855277,1747843834163,-295.80942376,0.00023013,2]
[361855278,1747843834174,-207.4,0.00023033,2]
[361855279,1747843834184,-2738.04,0.00023287,2]
[361855280,1747843834194,-546.17,0.00023287,2]
[361855281,1747843834204,-176.95262963,0.00023287,2]
[361855282,1747843834214,-500.0,0.00023431,2]
[361855283,1747843834415,-500.0,0.00023559,2]
[361855284,1747843834427,-2738.04,0.00023561,2]
[361855285,1747843834436,-546.17,0.00023561,2]
[361855286,1747843834447,-235.46143326,0.0002365,9]
[361855287,1747843834457,-429.73910508,0.00023686,2]
[361855288,1747843834468,-499.3,0.000237,2]
[361855289,1747843834477,-2738.04,0.00023835,2]
[361855290,1747843834488,-546.17,0.00023835,2]
[361855291,1747843834498,-150.0,0.000239,2]
[361855292,1747843834508,-500.0,0.00023962,2]
[361855293,1747843834517,-504.64494429,0.00024004,2]
[361855294,1747843834527,-500.0,0.00024107,2]
[361855295,1747843834536,-2738.04,0.00024109,2]
[361855296,1747843834546,-546.17,0.00024109,2]
[361855297,1747843834556,-500.0,0.0002415,2]
[361855298,1747843834566,-193.37652446,0.00024185,2]
[361855299,1747843834576,-2738.04,0.00024383,2]
[361855300,1747843834586,-546.17,0.00024383,2]
[361855301,1747843834598,-215.0738,0.00024402,2]
[361855302,1747843834608,-166.31915339,0.00024419,2]
[361855303,1747843834618,-200.0,0.00024421,120]
[361855304,1747843834628,-500.0,0.00024503,2]
[361855305,1747843834650,-500.0,0.00024655,2]
[361855306,1747843834662,-7534.73,0.00024656,2]
[361855307,1747843834672,-2738.04,0.00024657,2]
[361855308,1747843834682,-546.17,0.00024657,2]
[361855309,1747843834692,-500.0,0.00024751,2]
[361855310,1747843834702,-318.94952444,0.000248,2]
[361855311,1747843834712,-562.28190819,0.00024885,9]
[361855312,1747843834722,-300.0,0.00024899,2]
[361855313,1747843834732,-241926.256534,0.000249,2]
[361855314,1747843834741,-500.0,0.00024912,2]
[361855315,1747843834751,-2738.04,0.00024931,2]
[361855316,1747843834761,-546.17,0.00024931,2]
[361855317,1747843834771,-241926.256534,0.0002499,2]
[361855318,1747843834781,-318.94952444,0.0002499,2]
[361855319,1747843834791,-2000.0,0.00025,2]
[361855320,1747843834800,-12103.00275502,0.00025,15]
[361855321,1747843834811,-500.71182179,0.00025,120]
[361855322,1747843834820,-173.25733,0.0002508,4]
[361855323,1747843834830,-200.0,0.00025091,120]
[361855324,1747843834840,-516.04,0.000252,31]
[361855325,1747843834851,-516.04,0.000252,31]
[361855326,1747843834860,-516.04,0.000252,31]
[361855327,1747843834870,-516.04,0.000252,31]
[361855328,1747843834880,-516.04,0.000252,31]
[361855329,1747843834890,-516.04,0.000252,31]
[361855330,1747843834900,-516.04,0.000252,31]
[361855331,1747843834910,-516.04,0.000252,31]
[361855332,1747843834920,-516.04,0.000252,31]
[361855333,1747843834930,-516.04,0.000252,31]
[361855334,1747843834940,-516.04,0.000252,31]
[361855335,1747843834950,-516.04,0.000252,31]
[361855336,1747843834960,-516.04,0.000252,31]
[361855337,1747843834970,-516.04,0.000252,31]
[361855338,1747843834980,-516.04,0.000252,31]
[361855339,1747843834989,-516.04,0.000252,31]
[361855340,1747843834999,-500.0,0.00025203,30]
[361855341,1747843835008,-2738.04,0.00025205,2]
[361855342,1747843835018,-546.17,0.00025205,2]
[361855343,1747843835028,-500.0,0.00025248,2]
[361855344,1747843835038,-200.0,0.00025266,120]
[361855345,1747843835048,-500.0,0.00025284,2]
[361855346,1747843835058,-642.69,0.00025311,3]
[361855347,1747843835069,-200.0,0.00025401,120]
[361855348,1747843835079,-649.57186558,0.00025474,2]
[361855349,1747843835089,-2738.04,0.00025479,2]
[361855350,1747843835105,-546.17,0.00025479,2]
[361855351,1747843835116,-101826.03818556,0.000255,2]
[361855352,1747843835126,-642.69,0.00025511,4]
[361855353,1747843835138,-200.0,0.00025548,120]
[361855354,1747843835148,-500.0,0.00025562,2]
[361855355,1747843835159,-241926.256534,0.00025575,2]
[361855356,1747843835170,-318.94952444,0.00025575,2]
[361855357,1747843835182,-12643.00196899,0.00025585,3]
[361855358,1747843835192,-160.0,0.00025585,3]
[361855359,1747843835202,-422.71322487,0.00025585,3]
[361855360,1747843835212,-212.41679935,0.00025585,3]
[361855361,1747843835222,-151.0,0.00025585,7]
[361855362,1747843835232,-250.555973,0.00025585,7]
[361855363,1747843835242,-973.01965349,0.00025586,2]
[361855364,1747843835257,-2960.17416111,0.00025586,3]
[361855365,1747843835267,-1131524.00469107,0.00025587,20]
[361855366,1747843835371,-23387.70538507,0.00025587,20]
[361855367,1747843835423,-1088.6,0.00025587,20]
[361855381,1747843838763,-500.0,0.00023012,2]
[361855383,1747843838773,-598.7177945,0.00023012,2]
[361855385,1747843838782,-500.0,0.00023012,2]
[361855386,1747843838792,-500.0,0.00023012,2]
[361855388,1747843838802,-263.80919117,0.00023012,2]
[361855482,1747843840580,-236.19080883,0.00023012,2]
[361855483,1747843840590,-624.3324287,0.00023012,2]
[361855484,1747843840601,-500.0,0.00023012,2]
[361855485,1747843840611,-500.0,0.00023012,2]
[361855486,1747843840622,-500.0,0.00023012,2]
[361855487,1747843840631,-500.0,0.00023012,2]
[361855488,1747843840641,-500.0,0.00024658,2]
[361855489,1747843840651,-500.0,0.00024658,2]
[361855490,1747843840666,-306.7083367,0.00024658,2]
[361856168,1747844208761,162.327112,0.00013699,2]
[361856262,1747844947096,-5000.0,0.00015812,2]
[361856263,1747844947120,-166.0,0.00016795,3]
[361856264,1747844947146,-202.74808277,0.000169,2]
[361856265,1747844947172,-202.74808254,0.00017233,2]
[361856266,1747844947198,-202.74808254,0.00017567,2]
[361856267,1747844947224,-202.74808254,0.000179,2]
[361856268,1747844947251,-202.74808254,0.00018233,2]
[361856269,1747844947277,-202.74808254,0.00018567,2]
[361856270,1747844947301,-202.74808254,0.000189,2]
[361856271,1747844947322,-300.0,0.00018999,2]
[361856272,1747844947342,-21030.93721439,0.00019,2]
[361856342,1747845032359,-13285.31492296,0.000188,2]
[361856372,1747845038390,-300.0,0.00018798,2]
[361856373,1747845038400,-500.0,0.00018799,2]
[361856374,1747845038410,-289.87739023,0.00018799,2]
[361856375,1747845038423,-210.12260977,0.00018799,2]
[361856376,1747845038433,-500.0,0.00018799,2]
[361856377,1747845038444,-500.0,0.00018799,2]
[361856378,1747845038454,-500.0,0.00018799,2]
[361856379,1747845038463,-500.0,0.00018799,2]
[361856380,1747845038474,-500.0,0.00018799,2]
[361856381,1747845038484,-384.05677333,0.00018799,2]
[361856382,1747845038496,-500.0,0.00018799,2]
[361856383,1747845038508,-500.0,0.00018799,2]
[361856385,1747845038518,-49402.85507704,0.000188,2]
[361856387,1747845038528,-2220.0,0.0001881,2]
[361856388,1747845038538,-300.0,0.00018999,2]
[361856389,1747845038548,-300.0,0.00018999,2]
[361856390,1747845038558,-1200.0,0.00018999,2]
[361856391,1747845038568,-500.0,0.00018999,2]
[361856392,1747845038579,-500.0,0.00018999,2]
[361856393,1747845038589,-619.10245615,0.00018999,2]
[361856394,1747845038599,-337.03270008,0.00018999,2]
[361856395,1747845038610,-500.0,0.00018999,2]
[361856396,1747845038620,-500.0,0.00018999,2]
[361856397,1747845038631,-500.0,0.00018999,2]
[361856398,1747845038641,-500.0,0.00018999,2]
[361856399,1747845038651,-71234.8392492,0.00019,2]
[361856400,1747845038661,-202.74808254,0.00019233,2]
[361856401,1747845038672,-212.41679935,0.00019236,2]
[361856402,1747845038682,-160.0,0.00019236,2]
[361856403,1747845038692,-160.0,0.00019236,2]
[361856404,1747845038702,-160.0,0.00019236,2]
[361856405,1747845038713,-894.64583333,0.00019236,2]
[361856406,1747845038723,-422.71322487,0.00019236,2]
[361856407,1747845038733,-202.74808254,0.00019567,2]
[361856408,1747845038743,-202.74808254,0.000199,2]
[361856409,1747845038753,-349.2695165,0.00020063,2]
[361856410,1747845038762,-202.74808254,0.00020233,2]
[361856411,1747845038772,-162.327112,0.00020548,2]
[361856412,1747845038781,-202.74808254,0.00020567,3]
[361856413,1747845038791,-1200.0,0.0002081,2]
[361856414,1747845038805,-202.74808254,0.000209,4]
[361856415,1747845038815,-202.74808254,0.00021233,4]
[361856416,1747845038826,-202.74808254,0.00021567,5]
[361856417,1747845038837,-500.0,0.0002177,2]
[361856418,1747845038846,-202.74808254,0.000219,6]
[361856419,1747845038856,-430.0,0.00021917,2]
[361856420,1747845038866,-1140.85,0.00021917,2]
[361856421,1747845038876,-500.0,0.00021933,2]
[361856422,1747845038886,-165.0,0.00022,2]
[361856423,1747845038896,-210.80639659,0.00022191,2]
[361856425,1747845038907,-1140.85,0.00022191,2]
[361856426,1747845038917,-202.74808254,0.00022233,6]
[361856428,1747845038927,-1140.85,0.00022465,2]
[361856429,1747845038938,-784.75909764,0.00022481,2]
[361856430,1747845038949,-202.74808254,0.00022567,7]
[361856431,1747845038961,-430.0,0.00022738,2]
[361856432,1747845038971,-227.52346696,0.00022739,2]
[361856433,1747845038982,-1140.85,0.00022739,2]
[361856434,1747845038992,-202.74808254,0.000229,8]
[361856435,1747845039003,-1180.45,0.00023,2]
[361856436,1747845039013,-2340.0,0.00023,7]
[361856437,1747845039023,-500.0,0.00023,30]
[361856438,1747845039033,-408.0,0.00023,30]
[361856439,1747845039043,-60179.62810888,0.00023,2]
[361856440,1747845039054,-247.69755333,0.00023,2]
[361856441,1747845039064,-199.99999907,0.00023,2]
[361856442,1747845039074,-430.0,0.00023012,2]
[361856443,1747845039084,-1140.85,0.00023013,2]
[361856444,1747845039094,-165.0,0.00023014,7]
[361856445,1747845039103,-282.62055697,0.00023033,2]
[361856446,1747845039113,-202.74808254,0.00023233,8]
[361856447,1747845039123,-335.45,0.00023236,15]
[361856448,1747845039133,-430.0,0.00023286,2]
[361856449,1747845039142,-430.0,0.00023286,2]
[361856450,1747845039152,-1140.85,0.00023287,2]
[361856451,1747845039161,-430.0,0.0002356,2]
[361856452,1747845039171,-430.0,0.0002356,2]
[361856453,1747845039181,-1140.85,0.00023561,2]
[361856454,1747845039191,-202.74808254,0.00023567,9]
[361856455,1747845039201,-430.0,0.00023834,2]
[361856456,1747845039210,-430.0,0.00023834,2]
[361856457,1747845039220,-1140.85,0.00023835,2]
[361856458,1747845039230,-202.74808254,0.000239,10]
[361856459,1747845039239,-568.12877829,0.00023962,2]
[361856460,1747845039249,-430.0,0.00024108,2]
[361856461,1747845039259,-1140.85,0.00024109,2]
[361856462,1747845039270,-165.0,0.00024164,7]
[361856463,1747845039280,-202.74808254,0.00024233,10]
[361856464,1747845039291,-430.0,0.00024382,2]
[361856465,1747845039301,-1140.85,0.00024383,2]
[361856466,1747845039312,-202.74808254,0.00024567,11]
[361856467,1747845039321,-430.0,0.00024656,2]
[361856468,1747845039330,-1140.85,0.00024657,2]
[361856469,1747845039340,-500.0,0.00024658,2]
[361856470,1747845039350,-557.91766963,0.00024658,2]
[361856471,1747845039360,-500.0,0.00024658,2]
[361856472,1747845039370,-500.0,0.00024658,2]
[361856473,1747845039379,-500.0,0.00024658,2]
[361856474,1747845039389,-500.0,0.00024658,2]
[361856475,1747845039398,-7220.79,0.00024659,2]
[361856476,1747845039407,-35452.50839111,0.0002466,7]
[361856477,1747845039417,-35452.50839111,0.0002466,7]
[361856478,1747845039427,-160.0,0.0002466,7]
[361856479,1747845039437,-894.64583333,0.0002466,7]
[361856480,1747845039447,-813.32128722,0.000248,2]
[361856481,1747845039458,-616911.954161,0.000249,2]
[361856482,1747845039468,-202.74808254,0.000249,12]
[361856483,1747845039478,-430.0,0.0002493,2]
[361856484,1747845039487,-1140.85,0.00024931,2]
[361856485,1747845039498,-10048.75035618,0.00025,7]
[361856486,1747845039511,-155.931597,0.0002508,4]
[361856487,1747845039522,-2000.0,0.000251,2]
[361856488,1747845039532,-156.4,0.000251,2]
[361856489,1747845039542,-433.52,0.000252,31]
[361856490,1747845039552,-433.52,0.000252,31]
[361856491,1747845039562,-433.52,0.000252,31]
[361856492,1747845039572,-433.52,0.000252,31]
[361856493,1747845039583,-433.52,0.000252,31]
[361856494,1747845039593,-433.52,0.000252,31]
[361856495,1747845039604,-433.52,0.000252,31]
[361856496,1747845039614,-433.52,0.000252,31]
[361856497,1747845039624,-433.52,0.000252,31]
[361856498,1747845039633,-433.52,0.000252,31]
[361856499,1747845039644,-433.52,0.000252,31]
[361856500,1747845039655,-433.52,0.000252,31]
[361856501,1747845039665,-433.52,0.000252,31]
[361856502,1747845039675,-433.52,0.000252,31]
[361856503,1747845039685,-433.52,0.000252,31]
[361856504,1747845039695,-433.52,0.000252,31]
[361856505,1747845039705,-430.0,0.00025204,2]
[361856506,1747845039876,-1140.85,0.00025205,2]
[361856509,1747845039886,-202.74808254,0.00025233,12]
[361856510,1747845039896,-430.0,0.00025478,2]
[361856511,1747845039906,-1140.85,0.00025479,2]
[361856512,1747845039916,-271.10709574,0.0002556,2]
[361856513,1747845039925,-202.74808254,0.00025567,13]
[361856515,1747845039935,-500.0,0.00025576,30]
[361856516,1747845039944,-271.10709574,0.0002558,2]
[361856517,1747845039955,-151.0,0.00025586,2]
[361856518,1747845039965,-813.32128722,0.0002559,2]
[361856519,1747845039974,-271.10709574,0.00025597,2]
[361856520,1747845039984,-156.703246,0.000256,20]
[361856522,1747845039995,-187.953458,0.000256,20]
[361856523,1747845040004,-135427.31,0.000256,2]
[361856524,1747845040013,-433.52,0.000256,31]
[361856525,1747845040023,-433.52,0.000256,31]
[361856526,1747845040033,-433.52,0.000256,31]
[361856527,1747845040042,-433.52,0.000256,31]
[361856528,1747845040051,-433.52,0.000256,31]
[361856529,1747845040062,-433.52,0.000256,31]
[361856530,1747845040071,-433.52,0.000256,31]
[361856531,1747845040081,-433.52,0.000256,31]
[361856532,1747845040091,-433.52,0.000256,31]
[361856533,1747845040100,-433.52,0.000256,31]
[361856534,1747845040110,-433.52,0.000256,31]
[361856535,1747845040119,-433.52,0.000256,31]
[361856536,1747845040129,-433.52,0.000256,31]
[361856537,1747845040138,-433.52,0.000256,31]
[361856538,1747845040147,-433.52,0.000256,31]
[361856539,1747845040157,-433.52,0.000256,31]
[361856540,1747845040166,-433.52,0.000256,31]
[361856541,1747845040176,-433.52,0.000256,31]
[361856542,1747845040185,-433.52,0.000256,31]
[361856543,1747845040194,-433.52,0.000256,31]
[361856544,1747845040205,-433.52,0.000256,31]
[361856545,1747845040214,-433.52,0.000256,31]
[361856546,1747845040223,-433.52,0.000256,31]
[361856547,1747845040233,-433.52,0.000256,31]
[361856548,1747845040242,-500.0,0.00025606,2]
[361856549,1747845040252,-160.0,0.00025607,3]
[361856550,1747845040262,-894.64583333,0.00025607,3]
[361856551,1747845040272,-486.50982675,0.00025607,2]
[361856552,1747845040282,-31182.88766919,0.00025607,3]
[361856553,1747845040292,-197714.11810663,0.00025608,20]
[361856554,1747845040374,-31545.69448127,0.00025608,20]
[361856555,1747845040386,-14878.34761016,0.00025608,20]
[361856556,1747845040398,-1958.44142266,0.00025608,20]
[361856557,1747845040410,-19964.64080598,0.00025608,20]
[361856558,1747845040422,-3625.31663789,0.00025608,20]
[361856559,1747845040433,-580.51443761,0.00025608,20]
[361856560,1747845040445,-5690.51969589,0.00025608,20]
[361856561,1747845040459,-193413.10591518,0.00025608,20]
[361856562,1747845040596,-671.5,0.00023236,15]
[361856563,1747845040607,-151.0,0.0002559,2]
[361856564,1747845040617,-151.0,0.000256,2]
[361856565,1747845040627,-422.71322487,0.00025607,3]
[361856566,1747845040637,-45024.88666347,0.00025608,20]
[361856567,1747845040648,-2220.0,0.00025608,20]
[361856603,1747845043760,-151.0,0.00025607,2]
[361856604,1747845043770,-1133.75909764,0.00025608,20]
[361856637,1747845059392,500.0,0.00019,30]
[361856644,1747845076138,500.0,0.00015,2]
[361856645,1747845094215,500.0,0.0002,120]
[361856653,1747845127897,297.1264994,0.00015,2]
[361856654,1747845127930,202.8735006,0.00015,2]
[361856655,1747845157896,541.19,0.00015,2]
[361856666,1747845269393,164.211933,0.00013699,2]
[361856670,1747845382657,19358.44796951,0.00013,2]
[361856683,1747845956098,-158.0,0.00016822,3]
[361856684,1747845956120,-36.51860634,0.0001934,2]
[361856740,1747846233168,-433.8591904,0.00018711,2]
[361856742,1747846233182,-4566.1408096,0.00018711,2]
[361856744,1747846233195,-205.56557386,0.000189,2]
[361856746,1747846233205,-153.30079669,0.000196,2]
[361856748,1747846233216,-300.0,0.00019683,2]
[361856750,1747846233227,-1200.0,0.00019683,2]
[361856752,1747846233237,-300.0,0.00019683,2]
[361856754,1747846233248,-2124.64838848,0.00019684,2]
[361856876,1747846238649,-300.0,0.00019682,2]
[361856878,1747846238659,-1295.4427705,0.00019684,2]
[361856880,1747846238671,-10471.19281077,0.00019684,2]
[361856882,1747846238684,-1811.9,0.00019684,2]
[361856885,1747846238696,-2297.51,0.00019684,2]
[361856887,1747846238714,-487.43904642,0.00019684,2]
[361856890,1747846238726,-4052.45329643,0.00019684,2]
[361856891,1747846238738,-91.43338433,0.000197,2]
[361856893,1747846238753,-66.36582067,0.000197,2]
[361856895,1747846238763,-222.612664,0.00019732,2]
[361856896,1747846238772,-408.74187216,0.000199,2]
[361856898,1747846238782,-324.7962802,0.00019923,2]
[361856901,1747846238792,-500.0,0.00019951,2]
[361856903,1747846238802,-376.52930003,0.00019951,2]
[361856904,1747846238812,-620.72610759,0.00019951,2]
[361856906,1747846238822,-532.42167574,0.00019951,2]
[361856908,1747846238831,-232.30224052,0.00019951,2]
[361856910,1747846238841,-500.0,0.00019951,2]
[361856911,1747846238851,-500.0,0.00019951,2]
[361856912,1747846238861,-500.0,0.00019951,2]
[361856927,1747846239089,-500.0,0.00019951,2]
[361856928,1747846239100,-500.0,0.00019951,2]
[361856930,1747846239110,-500.0,0.00019951,2]